fUST/lending_fUST_20250228
["ID","MTS","AMOUNT","RATE_DAILY","PERIOD"]
[354833153,1740729070034,-500.0,0.00104109,120]
[354833154,1740729070043,-500.0,0.00104109,120]
[354833155,1740729070052,-151.83311861,0.00104109,120]
[354833156,1740729070062,-500.0,0.00104109,120]
[354833157,1740729070071,-500.0,0.00104109,120]
[354833158,1740729070080,-500.0,0.00104109,120]
[354833159,1740729070089,-500.0,0.00104109,120]
[354833160,1740729070098,-500.0,0.00104109,120]
[354833161,1740729070107,-500.0,0.00104109,120]
[354833162,1740729070116,-500.0,0.00104109,120]
[354833163,1740729070126,-500.0,0.00104109,120]
[354833164,1740729070135,-627.407352,0.00104109,120]
[354833165,1740729070145,-508.02,0.00104109,120]
[354833166,1740729070154,-500.0,0.00104109,120]
[354833167,1740729070164,-677.8,0.00104109,120]
[354833168,1740729070172,-500.0,0.00104109,120]
[354833169,1740729070182,-500.0,0.00104109,120]
[354833170,1740729070192,-500.0,0.00104109,120]
[354833171,1740729070203,-500.0,0.00104109,120]
[354833172,1740729070212,-500.0,0.00104109,120]
[354833173,1740729070221,-604.99,0.00104109,120]
[354833174,1740729070230,-506.05253832,0.00104109,120]
[354833175,1740729070240,-500.0,0.00104109,120]
[354833176,1740729070249,-500.0,0.00104109,120]
[354833177,1740729070259,-500.0,0.00104109,120]
[354833178,1740729070270,-530.51,0.00104109,120]
[354833179,1740729070280,-500.0,0.00104109,120]
[354833180,1740729070289,-508.79484593,0.00104109,120]
[354833181,1740729070298,-745.29,0.00104109,120]
[354833182,1740729070307,-500.0,0.00104109,120]
[354833183,1740729070316,-500.0,0.00104109,120]
[354833184,1740729070326,-1175.315605,0.00104109,120]
[354833185,1740729070335,-503.85523431,0.00104109,120]
[354833186,1740729070345,-509.19413572,0.00104109,120]
[354833187,1740729070353,-1175.315605,0.00104109,120]
[354833188,1740729070363,-500.0,0.00104109,120]
[354833189,1740729070372,-500.0,0.00104109,120]
[354833190,1740729070382,-500.0,0.00104109,120]
[354833191,1740729070391,-616.24029548,0.00104109,120]
[354833192,1740729070400,-500.68991884,0.00104109,120]
[354833193,1740729070409,-508.47590333,0.00104109,120]
[354833194,1740729070418,-500.0,0.00104109,120]
[354833195,1740729070427,-500.0,0.00104109,120]
[354833196,1740729070436,-523.1,0.00104109,120]
[354833197,1740729070445,-500.0,0.00104109,120]
[354833198,1740729070454,-500.0,0.00104109,120]
[354833199,1740729070463,-500.0,0.00104109,120]
[354833200,1740729070473,-500.0,0.00104109,120]
[354833201,1740729070482,-500.0,0.00104109,120]
[354833202,1740729070491,-500.0,0.00104109,120]
[354833203,1740729070500,-500.0,0.00104109,120]
[354833204,1740729070509,-500.0,0.00104109,120]
[354833205,1740729070519,-500.0,0.00104109,120]
[354833206,1740729070528,-500.0,0.00104109,120]
[354833207,1740729070538,-500.0,0.00104109,120]
[354833208,1740729070547,-500.0,0.00104109,120]
[354833209,1740729070556,-500.0,0.00104109,120]
[354833210,1740729070565,-500.0,0.00104109,120]
[354833211,1740729070574,-748.69,0.00104109,120]
[354833212,1740729070584,-874.05,0.00104109,120]
[354833213,1740729070594,-500.0,0.00104109,120]
[354833214,1740729070604,-500.0,0.00104109,120]
[354833215,1740729070613,-500.0,0.00104109,120]
[354833216,1740729070624,-500.0,0.00104109,120]
[354833217,1740729070633,-500.0,0.00104109,120]
[354833218,1740729070642,-1007.44,0.00104109,120]
[354833219,1740729070652,-500.0,0.00104109,120]
[354833220,1740729070661,-500.0,0.00104109,120]
[354833221,1740729070670,-502.60845114,0.00104109,120]
[354833222,1740729070680,-500.0,0.00104109,120]
[354833223,1740729070693,-500.0,0.00104109,120]
[354833224,1740729070711,-500.0,0.00104109,120]
[354833225,1740729070723,-500.0,0.00104109,120]
[354833226,1740729070732,-500.0,0.00104109,120]
[354833227,1740729070740,-500.0,0.00104109,120]
[354833228,1740729070750,-500.0,0.00104109,120]
[354833229,1740729070762,-500.0,0.00104109,120]
[354833230,1740729070772,-500.0,0.00104109,120]
[354833231,1740729070782,-753.37,0.00104109,120]
[354833232,1740729070792,-500.0,0.00104109,120]
[354833233,1740729070801,-530.93,0.00104109,120]
[354833234,1740729070811,-500.0,0.00104109,120]
[354833235,1740729070915,-500.0,0.00104109,120]
[354833236,1740729070925,-500.0,0.00104109,120]
[354833237,1740729070934,-772.32,0.00104109,120]
[354833238,1740729070944,-500.0,0.00104109,120]
[354833239,1740729070953,-11613.08,0.00104109,7]
[354833240,1740729070962,-500.0,0.00104109,120]
[354833241,1740729070971,-532.21,0.00104109,120]
[354833242,1740729070980,-500.0,0.00104109,120]
[354833243,1740729070989,-500.0,0.00104109,120]
[354833244,1740729070998,-500.0,0.00104109,120]
[354833245,1740729071007,-1556.94,0.00104109,120]
[354833246,1740729071017,-500.0,0.00104109,120]
[354833247,1740729071026,-500.0,0.00104109,120]
[354833248,1740729071035,-500.59,0.00104109,120]
[354833249,1740729071044,-500.0,0.00104109,120]
[354833250,1740729071054,-500.0,0.00104109,120]
[354833251,1740729071063,-590.72,0.00104109,120]
[354833252,1740729071074,-500.0,0.00104109,120]
[354833253,1740729071084,-500.0,0.00104109,120]
[354833254,1740729071093,-500.0,0.00104109,120]
[354833255,1740729071103,-4393.23,0.00104109,120]
[354833256,1740729071112,-500.0,0.00104109,120]
[354833257,1740729071121,-632.06,0.00104109,120]
[354833258,1740729071130,-500.0,0.00104109,120]
[354833259,1740729071140,-500.0,0.00104109,120]
[354833260,1740729071149,-1833.79,0.00104109,120]
[354833261,1740729071158,-500.0,0.00104109,120]
[354833262,1740729071167,-501.35412303,0.00104109,120]
[354833263,1740729071177,-314.05790395,0.00104109,45]
[354833264,1740729071185,-500.0,0.00104109,120]
[354833265,1740729071195,-500.0,0.00104109,120]
[354833266,1740729071204,-500.0,0.00104109,120]
[354833267,1740729071213,-2892.98,0.00104109,120]
[354833268,1740729071222,-1008.73,0.00104109,120]
[354833269,1740729071231,-500.0,0.00104109,120]
[354833270,1740729071240,-500.0,0.00104109,120]
[354833271,1740729071249,-500.0,0.00104109,120]
[354833272,1740729071258,-500.0,0.00104109,120]
[354833273,1740729071269,-500.0,0.00104109,120]
[354833274,1740729071278,-500.0,0.00104109,120]
[354833275,1740729071287,-793.95,0.00104109,120]
[354833276,1740729071297,-6516.68,0.00104109,120]
[354833277,1740729071306,-500.0,0.00104109,120]
[354833278,1740729071315,-1565.72,0.00104109,120]
[354833279,1740729071324,-500.0,0.00104109,120]
[354833280,1740729071333,-500.0,0.00104109,120]
[354833281,1740729071343,-500.0,0.00104109,120]
[354833282,1740729071353,-197.19855487,0.00104109,120]
[354833283,1740729071363,-500.0,0.00104109,120]
[354833284,1740729071374,-1139.58,0.00104109,120]
[354833285,1740729071386,-4010.18,0.00104109,120]
[354833286,1740729071395,-500.0,0.00104109,120]
[354833287,1740729071404,-500.0,0.00104109,120]
[354833288,1740729071413,-672.53,0.00104109,120]
[354833289,1740729071422,-1915.4,0.00104109,120]
[354833290,1740729071431,-500.0,0.00104109,120]
[354833291,1740729071440,-588.21,0.00104109,120]
[354833292,1740729071450,-584.47,0.00104109,120]
[354833293,1740729071459,-606.2,0.00104109,120]
[354833294,1740729071468,-1547.61,0.00104109,120]
[354833295,1740729071477,-500.0,0.00104109,120]
[354833296,1740729071486,-500.0,0.00104109,120]
[354833297,1740729071495,-500.0,0.00104109,120]
[354833298,1740729071504,-552.88482914,0.00104109,120]
[354833299,1740729071513,-2877.85,0.00104109,120]
[354833300,1740729071523,-500.0,0.00104109,120]
[354833301,1740729071532,-661.27,0.00104109,120]
[354833302,1740729071541,-500.0,0.00104109,30]
[354833303,1740729071550,-284.957089,0.00104109,120]
[354833304,1740729071560,-500.0,0.00104109,120]
[354833305,1740729071570,-812.15,0.00104109,120]
[354833306,1740729071579,-500.0,0.00104109,120]
[354833307,1740729071589,-510.5,0.00104109,120]
[354833308,1740729071598,-284.957089,0.00104109,120]
[354833309,1740729071607,-1765.26,0.00104109,120]
[354833310,1740729071616,-899.89,0.00104109,120]
[354833311,1740729071626,-525.54,0.00104109,120]
[354833312,1740729071635,-500.0,0.00104109,120]
[354833313,1740729071645,-500.0,0.00104109,120]
[354833314,1740729071654,-612.01,0.00104109,120]
[354833315,1740729071663,-500.0,0.00104109,120]
[354833316,1740729071672,-500.0,0.00104109,120]
[354833317,1740729071682,-500.0,0.00104109,120]
[354833318,1740729071691,-500.0,0.00104109,120]
[354833319,1740729071700,-1314.56,0.00104109,120]
[354833320,1740729071713,-6198.23,0.00104109,120]
[354833321,1740729071722,-48801.26,0.00104109,7]
[354833322,1740729071732,-500.0,0.00104109,120]
[354833323,1740729071741,-500.0,0.00104109,120]
[354833324,1740729071751,-151.0,0.00104109,120]
[354833325,1740729071760,-500.0,0.00104109,120]
[354833326,1740729071770,-532.68,0.00104109,120]
[354833327,1740729071779,-346.90456,0.00104109,120]
[354833328,1740729071791,-2002.68,0.00104109,120]
[354833329,1740729071801,-3085.87,0.00104109,120]
[354833330,1740729071811,-500.0,0.00104109,120]
[354833331,1740729071820,-500.0,0.00104109,120]
[354833332,1740729071829,-500.0,0.00104109,120]
[354833333,1740729071838,-500.0,0.00104109,120]
[354833334,1740729071848,-1055.5,0.00104109,120]
[354833335,1740729071858,-431.246784,0.00104109,2]
[354833336,1740729071867,-500.0,0.00104109,120]
[354833337,1740729071877,-500.0,0.00104109,120]
[354833338,1740729071886,-238.77,0.00104109,120]
[354833339,1740729071896,-431.246784,0.00104109,2]
[354833340,1740729071905,-500.99962877,0.00104109,120]
[354833341,1740729071914,-500.0,0.00104109,120]
[354833342,1740729071924,-502.55,0.00104109,120]
[354833343,1740729071933,-749.41,0.00104109,120]
[354833344,1740729071943,-1132.97,0.00104109,120]
[354833345,1740729071952,-500.0,0.00104109,120]
[354833346,1740729071961,-500.0,0.00104109,120]
[354833347,1740729071970,-23601.55,0.00104109,120]
[354833348,1740729071980,-209.41478684,0.00104109,120]
[354833349,1740729071990,-507.38,0.00104109,120]
[354833350,1740729072002,-536.87,0.00104109,120]
[354833351,1740729072012,-500.0,0.00104109,120]
[354833352,1740729072022,-500.0,0.00104109,120]
[354833353,1740729072032,-500.0,0.00104109,120]
[354833354,1740729072041,-746.73,0.00104109,120]
[354833355,1740729072054,-153.856437,0.00104109,110]
[354833356,1740729072064,-500.0,0.00104109,120]
[354833357,1740729072075,-1089.7,0.00104109,120]
[354833358,1740729072084,-153.856437,0.00104109,110]
[354833359,1740729072094,-2092.1,0.00104109,120]
[354833360,1740729072103,-500.0,0.00104109,120]
[354833361,1740729072112,-500.0,0.00104109,120]
[354833362,1740729072121,-1310.9,0.00104109,120]
[354833363,1740729072131,-500.0,0.00104109,120]
[354833364,1740729072140,-500.0,0.00104109,120]
[354833365,1740729072150,-154.0,0.0010411,16]
[354833366,1740729072159,-2500.0,0.00104836,60]
[354833367,1740729072168,-20000.0,0.00105,120]
[354833368,1740729072178,-20000.0,0.00105,120]
[354833369,1740729072187,-2000.0,0.00107945,20]
[354833370,1740729072197,-122104.59833162,0.00109,30]
[354833371,1740729072206,-10827.46457665,0.00109,30]
[354833372,1740729072216,-61438.69066115,0.00109,30]
[354833373,1740729072226,-5413.73228833,0.00109,30]
[354833374,1740729072235,-15939.84,0.00109,60]
[354833375,1740729072245,-200.001487,0.00109,120]
[354833376,1740729072254,-200.001487,0.00109,120]
[354833377,1740729072264,-1175.315605,0.00109,120]
[354833378,1740729072273,-1175.315605,0.00109,120]
[354833379,1740729072283,-284.957089,0.00109,120]
[354833380,1740729072292,-284.957089,0.00109,120]
[354833381,1740729072301,-431.246784,0.00109,2]
[354833382,1740729072311,-431.246784,0.00109,2]
[354833383,1740729072320,-153.856437,0.00109,110]
[354833384,1740729072330,-153.856437,0.00109,110]
[354833385,1740729072339,-2598.07,0.00109388,120]
[354833386,1740729072348,-500.0,0.00109589,120]
[354833387,1740729072358,-361.91361,0.00109589,30]
[354833388,1740729072367,-361.91361,0.00109589,30]
[354833389,1740729072376,-361.91361,0.00109589,30]
[354833390,1740729072387,-361.91361,0.00109589,30]
[354833391,1740729072396,-361.91361,0.00109589,30]
[354833392,1740729072405,-361.91361,0.00109589,30]
[354833393,1740729072415,-361.91361,0.00109589,30]
[354833394,1740729072424,-361.91361,0.00109589,30]
[354833395,1740729072433,-361.91361,0.00109589,30]
[354833396,1740729072443,-20000.0,0.0011,120]
[354833397,1740729072453,-20000.0,0.0011,120]
[354833398,1740729072463,-13572.0,0.0011,120]
[354833399,1740729072472,-666.0,0.00111013,120]
[354833400,1740729072481,-500.0,0.00111031,120]
[354833401,1740729072490,-100000.0,0.001111,120]
[354833402,1740729072500,-500.0,0.00112473,120]
[354833403,1740729072509,-1572.14,0.001129,14]
[354833404,1740729072520,-500.0,0.00113915,120]
[354833405,1740729072530,-2598.07,0.00114867,120]
[354833406,1740729072540,-194.69633195,0.00115068,16]
[354833407,1740729072549,-500.0,0.00115357,120]
[354833408,1740729072559,-981.56283909,0.00115845,120]
[354833409,1740729072569,-3000.0,0.00116035,30]
[354833410,1740729072579,-500.0,0.00116799,120]
[354833411,1740729072588,-1522.64736504,0.00117995,28]
[354833412,1740729072599,-500.0,0.00118241,120]
[354833413,1740729072608,-500.0,0.00119683,120]
[354833414,1740729072617,-1000.0,0.0012,120]
[354833415,1740729072628,-1000.0,0.0012,120]
[354833416,1740729072638,-1000.0,0.0012,120]
[354833417,1740729072648,-1000.0,0.0012,120]
[354833418,1740729072657,-1000.0,0.0012,120]
[354833419,1740729072666,-1000.0,0.0012,120]
[354833420,1740729072676,-1000.0,0.0012,120]
[354833421,1740729072686,-1000.0,0.0012,120]
[354833422,1740729072696,-1000.0,0.0012,120]
[354833423,1740729072708,-1000.0,0.0012,120]
[354833424,1740729072718,-1000.0,0.0012,120]
[354833425,1740729072728,-1000.0,0.0012,120]
[354833426,1740729072737,-1000.0,0.0012,120]
[354833427,1740729072748,-1000.0,0.0012,120]
[354833428,1740729072758,-1000.0,0.0012,120]
[354833429,1740729072855,-1000.0,0.0012,120]
[354833430,1740729072876,-1000.0,0.0012,120]
[354833431,1740729072886,-1000.0,0.0012,120]
[354833432,1740729072896,-1000.0,0.0012,120]
[354833433,1740729072905,-1000.0,0.0012,120]
[354833434,1740729072916,-1000.0,0.0012,120]
[354833435,1740729072927,-1000.0,0.0012,120]
[354833436,1740729072938,-1000.0,0.0012,120]
[354833437,1740729072948,-1000.0,0.0012,120]
[354833438,1740729072957,-1000.0,0.0012,120]
[354833439,1740729072967,-1000.0,0.0012,120]
[354833440,1740729072977,-172.96,0.0012,120]
[354833441,1740729072986,-20000.0,0.0012,30]
[354833442,1740729072996,-361.913603,0.0012,30]
[354833443,1740729073006,-1175.315605,0.0012,120]
[354833444,1740729073020,-1175.3156,0.0012,120]
[354833445,1740729073030,-431.246784,0.0012,2]
[354833446,1740729073041,-431.246789,0.0012,2]
[354833447,1740729073051,-153.856437,0.0012,110]
[354833448,1740729073061,-153.856438,0.0012,110]
[354833449,1740729073071,-2598.07,0.00120347,120]
[354833450,1740729073081,-500.0,0.00121125,120]
[354833451,1740729073092,-100000.0,0.001222,120]
[354833452,1740729073103,-200.001487,0.001222,120]
[354833453,1740729073113,-200.001486,0.001222,120]
[354833454,1740729073124,-284.957089,0.001222,120]
[354833455,1740729073134,-284.957097,0.001222,120]
[354833456,1740729073144,-3000.0,0.00122262,60]
[354833457,1740729073155,-500.0,0.00122567,120]
[354833458,1740729073165,-150.09,0.00123,60]
[354833459,1740729073176,-824.53,0.00123,60]
[354833460,1740729073186,-2500.0,0.00123308,20]
[354833461,1740729073196,-500.0,0.00124009,120]
[354833462,1740729073206,-431.37588082,0.00124776,120]
[354833463,1740729073217,-2000.0,0.00125,120]
[354833464,1740729073227,-500.0,0.00125451,120]
[354833465,1740729073238,-2598.07,0.00125826,120]
[354833466,1740729073249,-151.85,0.00126,60]
[354833467,1740729073259,-725.4,0.00126,60]
[354833468,1740729073275,-268.398,0.00126245,2]
[354833469,1740729073285,-500.0,0.00126893,120]
[354833470,1740729073295,-22693.3887981,0.00127718,2]
[354833471,1740729073305,-500.0,0.00128008,120]
[354833472,1740729073315,-500.0,0.00128008,120]
[354833473,1740729073325,-500.0,0.00128008,120]
[354833474,1740729073335,-500.0,0.00128008,120]
[354833475,1740729073345,-500.0,0.00128008,120]
[354833476,1740729073354,-500.0,0.00128008,120]
[354833477,1740729073363,-500.0,0.00128008,120]
[354833478,1740729073373,-500.0,0.00128008,120]
[354833479,1740729073382,-500.0,0.00128008,120]
[354833480,1740729073391,-500.0,0.00128008,120]
[354833481,1740729073401,-500.0,0.00128008,120]
[354833482,1740729073410,-500.0,0.00128008,120]
[354833483,1740729073419,-500.0,0.00128008,120]
[354833484,1740729073428,-500.0,0.00128008,120]
[354833485,1740729073438,-500.0,0.00128008,120]
[354833486,1740729073448,-518.04,0.00128008,120]
[354833487,1740729073457,-500.0,0.00128335,120]
[354833488,1740729073467,-500.0,0.00128767,120]
[354833489,1740729073477,-502.49529427,0.00128767,120]
[354833490,1740729073486,-573.85127435,0.00128767,120]
[354833491,1740729073496,-500.0,0.00128767,120]
[354833492,1740729073505,-500.0,0.00128767,120]
[354833493,1740729073516,-500.0,0.00128767,120]
[354833494,1740729073526,-493.1,0.00128767,120]
[354833495,1740729073535,-500.0,0.00128767,120]
[354833496,1740729073545,-500.0,0.00128767,120]
[354833497,1740729073554,-500.0,0.00128767,120]
[354833498,1740729073564,-500.0,0.00128767,120]
[354833499,1740729073573,-500.0,0.00128767,120]
[354833500,1740729073583,-500.0,0.00128767,120]
[354833501,1740729073593,-500.0,0.00128767,120]
[354833502,1740729073602,-501.39,0.00128767,120]
[354833503,1740729073613,-500.0,0.00128767,120]
[354833504,1740729073623,-500.0,0.00128767,120]
[354833505,1740729073632,-500.0,0.00128767,120]
[354833506,1740729073642,-530.00479864,0.00128767,120]
[354833507,1740729073651,-500.0,0.00128767,120]
[354833508,1740729073661,-531.78,0.00128767,120]
[354833509,1740729073670,-500.0,0.00128767,120]
[354833510,1740729073679,-503.56878229,0.00128767,120]
[354833511,1740729073688,-444.9151711,0.00128767,120]
[354833512,1740729073698,-500.0,0.00128767,120]
[354833513,1740729073708,-500.0,0.00128767,120]
[354833514,1740729073719,-502.42748009,0.00128767,120]
[354833515,1740729073729,-500.0,0.00128767,120]
[354833516,1740729073738,-500.0,0.00128767,120]
[354833517,1740729073747,-500.0,0.00128767,120]
[354833518,1740729073760,-1899.72,0.00128767,120]
[354833519,1740729073774,-864.26,0.00128767,120]
[354833520,1740729073785,-807.93,0.00128767,120]
[354833521,1740729073796,-948.86,0.00128767,120]
[354833522,1740729073806,-500.0,0.00128767,120]
[354833523,1740729073815,-500.0,0.00128767,120]
[354833524,1740729073825,-500.0,0.00128767,120]
[354833525,1740729073835,-500.0,0.00128767,120]
[354833526,1740729073845,-500.0,0.00128767,120]
[354833527,1740729073854,-1043.41,0.00128767,120]
[354833528,1740729073863,-500.0,0.00128767,120]
[354833529,1740729073872,-1408.38,0.00128767,120]
[354833530,1740729073881,-871.78,0.00128767,120]
[354833531,1740729073891,-500.0,0.00128767,120]
[354833532,1740729073900,-500.0,0.00128767,120]
[354833533,1740729073910,-500.0,0.00128767,120]
[354833534,1740729073920,-851.03,0.00128767,120]
[354833535,1740729073930,-526.84,0.00128767,120]
[354833536,1740729073940,-500.0,0.00128767,120]
[354833537,1740729073950,-500.0,0.00128767,120]
[354833538,1740729073960,-500.0,0.00128767,120]
[354833539,1740729073970,-500.0,0.00128767,120]
[354833540,1740729073980,-500.0,0.00128767,120]
[354833541,1740729073990,-694.99,0.00128767,120]
[354833542,1740729074001,-500.0,0.00128767,120]
[354833543,1740729074010,-500.0,0.00128767,120]
[354833544,1740729074022,-500.0,0.00128767,120]
[354833545,1740729074032,-500.0,0.00128767,120]
[354833546,1740729074043,-500.0,0.00128767,120]
[354833547,1740729074052,-539.3,0.00128767,120]
[354833548,1740729074062,-500.0,0.00128767,120]
[354833549,1740729074071,-938.58,0.00128767,120]
[354833550,1740729074082,-511.10487004,0.00128767,120]
[354833551,1740729074092,-500.0,0.00128767,120]
[354833552,1740729074101,-500.0,0.00128767,120]
[354833553,1740729074111,-500.0,0.00128767,120]
[354833554,1740729074121,-500.0,0.00128767,120]
[354833555,1740729074131,-708.44,0.00128767,120]
[354833556,1740729074141,-700.0,0.00128767,120]
[354833557,1740729074150,-520.73,0.00128767,120]
[354833558,1740729074160,-388.41173715,0.00128767,120]
[354833559,1740729074171,-500.0,0.00128767,120]
[354833560,1740729074180,-500.0,0.00128767,120]
[354833561,1740729074191,-500.0,0.00128767,120]
[354833562,1740729074202,-500.0,0.00128767,120]
[354833563,1740729074212,-504.49763183,0.00128767,120]
[354833564,1740729074222,-500.0,0.00128767,120]
[354833565,1740729074231,-500.0,0.00128767,120]
[354833566,1740729074241,-500.0,0.00128767,120]
[354833567,1740729074251,-676.19,0.00128767,120]
[354833568,1740729074262,-1222.28,0.00128767,15]
[354833569,1740729074273,-500.0,0.00128767,120]
[354833570,1740729074283,-511.39898773,0.00128767,120]
[354833571,1740729074292,-500.0,0.00128767,120]
[354833572,1740729074302,-500.0,0.00128767,120]
[354833573,1740729074312,-500.0,0.00128767,120]
[354833574,1740729074322,-500.0,0.00128767,120]
[354833575,1740729074332,-500.0,0.00128767,120]
[354833576,1740729074341,-500.0,0.00128767,120]
[354833577,1740729074351,-500.0,0.00128767,120]
[354833578,1740729074361,-500.0,0.00128767,120]
[354833579,1740729074370,-508.02,0.00128767,120]
[354833580,1740729074380,-500.0,0.00128767,120]
[354833581,1740729074391,-677.8,0.00128767,120]
[354833582,1740729074401,-500.0,0.00128767,120]
[354833583,1740729074411,-500.0,0.00128767,120]
[354833584,1740729074421,-500.0,0.00128767,120]
[354833585,1740729074431,-604.99,0.00128767,120]
[354833586,1740729074442,-500.0,0.00128767,120]
[354833587,1740729074452,-500.0,0.00128767,120]
[354833588,1740729074461,-530.51,0.00128767,120]
[354833589,1740729074470,-500.0,0.00128767,120]
[354833590,1740729074480,-745.29,0.00128767,120]
[354833591,1740729074489,-500.0,0.00128767,120]
[354833592,1740729074499,-500.0,0.00128767,120]
[354833593,1740729074508,-500.0,0.00128767,120]
[354833594,1740729074519,-508.80158283,0.00128767,120]
[354833595,1740729074528,-500.0,0.00128767,120]
[354833596,1740729074538,-523.1,0.00128767,120]
[354833597,1740729074548,-500.0,0.00128767,120]
[354833598,1740729074558,-500.0,0.00128767,120]
[354833599,1740729074568,-500.0,0.00128767,120]
[354833600,1740729074577,-500.0,0.00128767,120]
[354833601,1740729074587,-500.0,0.00128767,120]
[354833602,1740729074596,-500.0,0.00128767,120]
[354833603,1740729074605,-500.0,0.00128767,120]
[354833604,1740729074615,-514.30683301,0.00128767,120]
[354833605,1740729074625,-500.0,0.00128767,120]
[354833606,1740729074634,-611.24492283,0.00128767,120]
[354833607,1740729074643,-500.0,0.00128767,120]
[354833608,1740729074653,-500.0,0.00128767,120]
[354833609,1740729074762,-500.0,0.00128767,120]
[354833610,1740729074775,-502.62319587,0.00128767,120]
[354833611,1740729074787,-748.69,0.00128767,120]
[354833612,1740729074799,-874.05,0.00128767,120]
[354833613,1740729074809,-500.0,0.00128767,120]
[354833614,1740729074820,-500.0,0.00128767,120]
[354833615,1740729074831,-500.0,0.00128767,120]
[354833616,1740729074841,-500.0,0.00128767,120]
[354833617,1740729074851,-500.0,0.00128767,120]
[354833618,1740729074861,-1007.44,0.00128767,120]
[354833619,1740729074871,-500.0,0.00128767,120]
[354833620,1740729074882,-500.0,0.00128767,120]
[354833621,1740729074892,-500.0,0.00128767,120]
[354833622,1740729074903,-500.0,0.00128767,120]
[354833623,1740729074913,-500.0,0.00128767,120]
[354833624,1740729074924,-500.0,0.00128767,120]
[354833625,1740729074936,-600.94772428,0.00128767,120]
[354833626,1740729074946,-524.39969507,0.00128767,120]
[354833627,1740729074956,-502.28916816,0.00128767,120]
[354833628,1740729074967,-500.0,0.00128767,120]
[354833629,1740729074977,-753.37,0.00128767,120]
[354833630,1740729074987,-500.0,0.00128767,120]
[354833631,1740729074998,-530.93,0.00128767,120]
[354833632,1740729075008,-500.0,0.00128767,120]
[354833633,1740729075019,-527.21120701,0.00128767,120]
[354833634,1740729075029,-772.32,0.00128767,120]
[354833635,1740729075039,-500.0,0.00128767,120]
[354833636,1740729075048,-11613.08,0.00128767,7]
[354833637,1740729075058,-510.72918183,0.00128767,120]
[354833638,1740729075069,-532.21,0.00128767,120]
[354833639,1740729075078,-500.0,0.00128767,120]
[354833640,1740729075089,-500.0,0.00128767,120]
[354833641,1740729075099,-500.0,0.00128767,120]
[354833642,1740729075109,-1556.94,0.00128767,120]
[354833643,1740729075119,-500.0,0.00128767,120]
[354833644,1740729075129,-500.0,0.00128767,120]
[354833645,1740729075139,-500.59,0.00128767,120]
[354833646,1740729075149,-500.0,0.00128767,120]
[354833647,1740729075159,-500.0,0.00128767,120]
[354833648,1740729075170,-590.72,0.00128767,120]
[354833649,1740729075180,-500.0,0.00128767,120]
[354833650,1740729075191,-481.42785173,0.00128767,120]
[354833651,1740729075201,-500.0,0.00128767,120]
[354833652,1740729075211,-500.0,0.00128767,120]